[Event "XII Figueira da Foz Open 2018"]
[Site "Figueira da Foz"]
[Date "2018.11.01"]
[Round "5"]
[White "Gama, Joao Goncalo Cereje"]
[Black "Guerreiro, Nuno"]
[Result "0-1"]
[ECO "B31"]
[WhiteElo "1598"]
[BlackElo "2069"]
[Annotator "NA"]
[PlyCount "106"]
[EventDate "2018.10.30"]
[EventType "swiss"]
[EventCountry "POR"]
[SourceTitle "playchess.com"]
[Source "ChessBase"]
[SourceQuality "1"]
[TimeControl "40/5400+30:1800+30"]

{[%evp 15,102,29,32767,32767,47,58,53,69,64,57,53,50,53,37,51,46,60,16,76,69,76,-34,105,0,37,27,56,43,113,-104,-39,32767,-31,-108,-96,-306,-298,-572,-372,-250,-106,-235,-254,-244,-233,-243,-21,-31,-39,-50,0,-79,-93,-84,-90,-202,-227,-435,-496,-441,-443,-511,-505,-710,-4734,-12841,-5218,-2252,-12837,-29991,-12844,-2891,-29983,-29983,-12846,-29990,-29991,-29991,-12848,32767,32767,-29993,32767,32767,32767,32767,32767,32767,-662]} 1. e4 {[%emt 0:00:00]} c5 {[%emt 0:01:56]} 2. Nf3 {[%emt 0:00:00]} Nc6 {[%emt 0:00:10]} 3. Bb5 {[%emt 0:00:17]} g6 {[%emt 0:00:39]} 4. O-O {[%emt 0:01:14]} Bg7 {[%emt 0:00:46]} 5. Re1 {[%emt 0:00:37]} Nf6 {[%emt 0:00:08]} 6. c3 {[%emt 0:00:57]} a6 {[%emt 0:01:13]} 7. Bf1 {[%emt 0:00:11]} d6 {[%emt 0:00:49]} 8. h3 {[%emt 0:02:54] LiveBook: 3 Games} e5 {[%emt 0:01:15]} 9. d4 {[%emt 0:07:58]} O-O {[%emt 0:01:12]} 10. d5 {[%emt 0:01:29] B31: Sicilian: 2...Nc6 3 Bb5 g6} (10. a4 b6 11. dxc5 dxc5 12. Qc2 Qc7 13. Na3 Bb7 14. Nd2 Bh6 15. Ndc4 Bxc1 16. Rexc1 Ne7 17. f3 Rad8 18. Qf2 {1-0 (52) Bazant,P (2338)-Nedela,V (2328) Czech Republic 2017}) 10... Ne7 {[%emt 0:00:36]} 11. a4 {[%emt 0:00:21]} b6 {[%emt 0:00:16]} 12. Na3 {[%emt 0:05:09]} Ne8 {[%emt 0:00:22]} 13. Nc4 {[%emt 0:16:02]} Rb8 $146 {[%emt 0:00:34]} ({Predecessor:} 13... f5 14. a5 b5 15. Nb6 Ra7 16. b4 c4 17. Be3 Rb7 18. Nxc8 Qxc8 {1-0 (41) Cafferty,B-Bourne,J Staffordshire 1975}) 14. a5 {[%emt 0:03:12]} b5 {[%emt 0:00:25]} 15. Nb6 {[%emt 0:00:07]} Bb7 {[%emt 0:00:24]} 16. b4 {[%emt 0:02:53]} Nc8 {[%emt 0:00:45]} (16... c4 $11 {remains equal.}) 17. Nxc8 {[%emt 0:01:08]} Rxc8 {[%emt 0:00:33] [#]} 18. Bd2 {[%emt 0:01:44]} (18. c4 $1 $16) 18... h6 $2 {[%emt 0:01:04] [#]} (18... c4 $15) 19. Rc1 {[%emt 0:01:33]} ({White should play} 19. c4 $1 $16) 19... f5 {[%emt 0:01:27]} 20. c4 {[%emt 0:08:12]} bxc4 {[%emt 0:02:45]} 21. Bxc4 {[%emt 0:00:53]} Nf6 {[%emt 0:00:54]} ({Black should try} 21... fxe4 $14 22. Rxe4 Qd7) 22. Nh4 $2 {[%emt 0:09:56]} (22. bxc5 $16 Rxc5 23. exf5) 22... Nxe4 {[%emt 0:01:13]} 23. Nxg6 {[%emt 0:04:08]} Rf7 {[%emt 0:00:39]} 24. Rxe4 {[%emt 0:03:35]} ({Besser ist} 24. Be2 $15) 24... fxe4 {[%emt 0:00:00]} 25. Qg4 $2 {[%emt 0:00:25]} (25. bxc5 $17 {was the only chance.} Rxc5 26. Be3 Rxa5 27. Qg4) 25... cxb4 {[%emt 0:06:12]} 26. Qe6 $2 {[%emt 0:09:24]} (26. Bxb4 {keeps fighting.} Qf6 27. Rc2) 26... Rcc7 {[%emt 0:02:46]} 27. Bxb4 {[%emt 0:01:51]} Rcd7 $2 {[%emt 0:02:27]} (27... Kh7 $19 {and Black stays clearly on top.} 28. Bxd6 Qg5) 28. Rc3 {[%emt 0:01:46]} (28. Rc2 $17 {might work better.}) 28... Kh7 {[%emt 0:01:35]} 29. Rg3 {[%emt 0:02:59]} ({Aber nicht} 29. Bxd6 $2 Rf6 $19) 29... Qf6 {[%emt 0:02:19]} 30. Kh2 {[%emt 0:04:05]} Bc8 $2 {[%emt 0:01:23]} (30... Rd8 $19 31. h4 Rc7) 31. Bxd6 $1 {[%emt 0:03:00]} Rxd6 {[%emt 0:01:05]} 32. Qxc8 {[%emt 0:00:09]} Qxf2 {[%emt 0:02:39]} 33. Nh4 {[%emt 0:04:02]} (33. Qg4 $11 {bleibt in der Remisbreite.} Qf5 {[#]} 34. Nf8+ $1 {[%mdl 512]} Kh8 35. Ng6+ Kh7 36. Nf8+ $1 {[%mdl 512]} Kh8 37. Ng6+ Kh7) 33... Qf4 {[%emt 0:01:34]} 34. Qg4 {[%emt 0:02:45]} Qxg4 {[%emt 0:02:06]} 35. Rxg4 {[%emt 0:00:18]} (35. hxg4 $17 Rc7 36. Ba2) 35... Rf4 {[%emt 0:00:34]} 36. Kg3 $2 {[%emt 0:01:10]} (36. g3 Rxg4 37. hxg4) 36... Bf6 {[%emt 0:01:10]} 37. Rxf4 {[%emt 0:00:26]} exf4+ {[%emt 0:00:07]} 38. Kg4 {[%emt 0:00:08]} Bxh4 {[%emt 0:00:23]} 39. Kxh4 {[%emt 0:00:00]} Rg6 {[%emt 0:00:00]} 40. Bf1 {[%emt 0:00:00]} e3 {[%emt 0:00:00]} 41. Bd3 {[%emt 0:04:11] [#]} Kg7 $1 {[%emt 0:04:59]} 42. g4 {[%emt 0:02:09]} Rd6 {[%emt 0:00:20]} (42... fxg3 $142 43. Bxg6 g2 44. Kg4 g1=Q+ 45. Kf3 Qf2+ 46. Ke4 e2 47. d6 e1=Q+ 48. Kd5 Qf3+ 49. Kc5 Qxa5+ 50. Kd4 Qad5#) 43. Bc4 {[%emt 0:00:58] [#]} Rxd5 $1 {[%emt 0:00:23]} 44. Bxa6 {[%emt 0:01:10]} Rxa5 {[%emt 0:00:23]} 45. Be2 {[%emt 0:00:13]} Ra2 {[%emt 0:00:13]} 46. Bf3 {[%emt 0:00:28]} e2 $19 {[%emt 0:00:13]} 47. Bxe2 {[%emt 0:00:03]} Rxe2 {[%emt 0:00:08]} 48. g5 {[%emt 0:00:08]} Rg2 {[%emt 0:00:41]} 49. gxh6+ {[%emt 0:00:17]} Kh7 {[%emt 0:00:13]} 50. Kh5 {[%emt 0:00:10]} f3 {[%emt 0:00:31]} 51. h4 {[%emt 0:00:03]} Kh8 {[%emt 0:00:12]} (51... Re2 $142 52. Kg5 f2 53. Kg4 f1=Q 54. Kg3 Rg2+ 55. Kh3 Qh1#) 52. h7 {[%emt 0:00:09]} f2 {[%emt 0:00:31]} 53. Kh6 {[%emt 0:00:06]} f1=Q {[%emt 0:00:10]} 0-1

[Event "XII Figueira da Foz Open 2018"]
[Site "Figueira da Foz"]
[Date "2018.11.01"]
[Round "5"]
[White "Moes Joaquim, Carlos"]
[Black "Marcal, Armando Paulo Gomes"]
[Result "0-1"]
[ECO "E21"]
[WhiteElo "1415"]
[BlackElo "1751"]
[Annotator "NA"]
[PlyCount "70"]
[EventDate "2018.10.30"]
[EventType "swiss"]
[EventCountry "POR"]
[SourceTitle "playchess.com"]
[Source "ChessBase"]
[SourceQuality "1"]
[TimeControl "40/5400+30:1800+30"]

1. d4 {[%emt 0:04:48]} Nf6 {[%emt 0:00:00]} 2. c4 {[%emt 0:00:08]} e6 {[%emt 0:00:24]} 3. Nc3 {[%emt 0:00:10]} Bb4 {[%emt 0:00:38]} 4. Nf3 {[%emt 0:00:19]} b6 {[%emt 0:00:20]} 5. e3 {[%emt 0:01:14]} Bb7 {[%emt 0:00:14]} 6. Be2 {[%emt 0:00:27]} O-O {[%emt 0:00:31]} 7. O-O c6 8. Qc2 {[%emt 0:04:07]} d5 {[%emt 0:00:51]} 9. a3 {[%emt 0:00:30]} Bxc3 {[%emt 0:03:13]} 10. Qxc3 {[%emt 0:08:55]} Nbd7 {[%emt 0:01:43]} 11. Rd1 {[%emt 0:00:50]} Ne4 {[%emt 0:00:51]} 12. Qc2 {[%emt 0:02:47]} Qf6 {[%emt 0:02:22]} 13. b4 {[%emt 0:02:25]} Rfd8 14. Bb2 {[%emt 0:00:30]} Qh6 15. Rac1 {[%emt 0:00:30]} Ndf6 16. Ne5 {[%emt 0:00:30]} Nxf2 17. Kxf2 {[%emt 0:00:30]} Ne4+ 18. Ke1 {[%emt 0:00:30]} Qh4+ 19. g3 {[%emt 0:00:30]} Qxh2 20. Bf3 {[%emt 0:00:30]} Qxg3+ 21. Ke2 {[%emt 0:00:30]} Qh2+ 22. Kf1 {[%emt 0:00:30]} Ng3+ 23. Ke1 {[%emt 0:00:30]} Qg1+ 24. Kd2 {[%emt 0:00:30]} Qf2+ 25. Kd3 {[%emt 0:00:30]} dxc4+ 26. Kxc4 {[%emt 0:00:30]} Qxe3 27. Rd3 {[%emt 0:00:30]} Ba6+ 28. Kc3 {[%emt 0:00:30]} Bxd3 29. Qxd3 {[%emt 0:00:30]} Qf4 30. Rg1 {[%emt 0:00:30]} Nf5 31. Bc1 {[%emt 0:00:30]} Qh2 32. Rg2 {[%emt 0:00:30]} Qh4 33. Bd2 {[%emt 0:00:30]} a5 34. Rg4 {[%emt 0:00:30]} axb4+ 35. Kxb4 {[%emt 0:00:30]} Qe7+ 0-1

[Event "XII Figueira da Foz Open 2018"]
[Site "Figueira da Foz"]
[Date "2018.11.01"]
[Round "5"]
[White "Goncalves, Lucas Jordao"]
[Black "Ferreira, Cristina"]
[Result "0-1"]
[ECO "C50"]
[WhiteElo "1401"]
[BlackElo "1069"]
[Annotator "NA RC"]
[PlyCount "59"]
[EventDate "2018.10.30"]
[EventType "swiss"]
[EventCountry "POR"]
[SourceTitle "playchess.com"]
[Source "ChessBase"]
[SourceQuality "1"]
[TimeControl "40/5400+30:1800+30"]

1. e4 {[%emt 0:01:53]} e5 {[%emt 0:00:00]} 2. Nf3 {[%emt 0:00:08]} Nc6 {[%emt 0:00:05]} 3. Bc4 {[%emt 0:00:11]} Be7 {[%emt 0:01:08]} 4. c3 {[%emt 0:00:41]} Nh6 {[%emt 0:02:53]} 5. d3 {[%emt 0:00:12]} d6 {[%emt 0:05:17]} 6. O-O {[%emt 0:00:11]} Bg4 {[%emt 0:02:24]} 7. Bxh6 {[%emt 0:00:21]} gxh6 {[%emt 0:01:52]} 8. Nbd2 {[%emt 0:00:05]} Rf8 {[%emt 0:02:14]} 9. Qb3 {[%emt 0:00:40]} Na5 {[%emt 0:05:02]} 10. Qa4+ {[%emt 0:01:08]} Bd7 {[%emt 0:03:26]} 11. Qxa5 {[%emt 0:00:15]} b6 {[%emt 0:07:29]} 12. Qa6 Rg8 {[%emt 0:00:30]} 13. b4 Bg5 {[%emt 0:00:30]} 14. Qa3 Qe7 {[%emt 0:00:30]} 15. Kh1 Kf8 {[%emt 0:00:30]} 16. Rad1 Qf6 {[%emt 0:00:30]} 17. Nxg5 Qxg5 {[%emt 0:00:30]} 18. Rg1 Rg7 {[%emt 0:00:30]} 19. Nf3 Qf6 {[%emt 0:00:30]} 20. Qc1 Ke7 {[%emt 0:00:30]} 21. Qe3 Rag8 {[%emt 0:00:30]} 22. d4 Qg6 {[%emt 0:00:30]} 23. dxe5 b5 {[%emt 0:00:30]} 24. exd6+ cxd6 {[%emt 0:00:30]} 25. e5 Qxg2+ {[%emt 0:00:30]} 26. Rxg2 d5 {[%emt 0:00:30]} 27. Qc5+ Ke6 {[%emt 0:00:30]} 28. Qd6+ Kf5 {[%emt 0:00:30]} 29. Qf6+ Ke4 {[%emt 0:00:30]} 30. Rd4# 0-1

[Event "XII Figueira da Foz Open 2018"]
[Site "Figueira da Foz"]
[Date "2018.11.01"]
[Round "5"]
[White "Fonseca, Rene Gil Bakker"]
[Black "Soares, Sara Joana De Moura"]
[Result "1/2-1/2"]
[ECO "C99"]
[WhiteElo "1378"]
[BlackElo "1481"]
[Annotator "NA RC"]
[PlyCount "96"]
[EventDate "2018.10.30"]
[EventType "swiss"]
[EventCountry "POR"]
[SourceTitle "playchess.com"]
[Source "ChessBase"]
[SourceQuality "1"]
[TimeControl "40/5400+30:1800+30"]

1. e4 {[%emt 0:00:00]} e5 {[%emt 0:00:00]} 2. Nf3 {[%emt 0:00:00]} Nc6 {[%emt 0:00:00]} 3. Bb5 {[%emt 0:00:00]} a6 {[%emt 0:00:14]} 4. Ba4 {[%emt 0:00:00]} Nf6 {[%emt 0:00:17]} 5. O-O {[%emt 0:00:07]} Be7 {[%emt 0:00:29]} 6. Re1 {[%emt 0:00:18]} b5 {[%emt 0:00:29]} 7. Bb3 {[%emt 0:00:08]} O-O {[%emt 0:00:13]} 8. c3 {[%emt 0:00:15]} d6 {[%emt 0:00:19]} 9. h3 {[%emt 0:01:12]} Na5 {[%emt 0:00:28]} 10. Bc2 {[%emt 0:00:52]} c5 {[%emt 0:00:22]} 11. d4 {[%emt 0:01:46]} cxd4 {[%emt 0:01:37]} 12. cxd4 {[%emt 0:00:35]} Qc7 {[%emt 0:00:43]} 13. Nbd2 {[%emt 0:05:54]} Bd7 {[%emt 0:05:56]} 14. Nf1 {[%emt 0:08:37]} Rfc8 {[%emt 0:06:50]} 15. Re2 {[%emt 0:01:00]} Nc6 {[%emt 0:02:25]} 16. Bg5 {[%emt 0:04:02]} h6 {[%emt 0:08:13]} 17. Bxf6 {[%emt 0:07:14]} Bxf6 {[%emt 0:00:24]} 18. dxe5 {[%emt 0:10:03]} dxe5 {[%emt 0:13:25]} 19. Rc1 {[%emt 0:09:01]} Nb4 20. Bb3 {[%emt 0:01:16]} Qxc1 {[%emt 0:07:33]} 21. Qxd7 {[%emt 0:01:18]} Qc7 {[%emt 0:01:06]} 22. Rd2 {[%emt 0:04:18]} Ra7 {[%emt 0:18:29]} 23. Qg4 {[%emt 0:10:03]} Rd8 {[%emt 0:03:52]} 24. Rxd8+ {[%emt 0:10:29]} Qxd8 {[%emt 0:00:06]} 25. Kh2 {[%emt 0:02:03]} Nd3 {[%emt 0:04:24]} 26. Ng3 {[%emt 0:01:43]} Nxf2 {[%emt 0:06:09]} 27. Qg6 {[%emt 0:01:01]} Nd3 {[%emt 0:03:57]} 28. Nh5 {[%emt 0:02:14]} Qe7 {[%emt 0:02:08]} 29. Nh4 {[%emt 0:04:53]} Kh8 {[%emt 0:07:24]} 30. Qg4 {[%emt 0:05:48]} g6 {[%emt 0:05:08]} 31. Nxf6 {[%emt 0:03:09]} Qxf6 {[%emt 0:00:02]} 32. Qc8+ {[%emt 0:00:24]} Kg7 {[%emt 0:00:42]} 33. Nf3 {[%emt 0:02:29]} Qf4+ {[%emt 0:00:21]} 34. Kg1 {[%emt 0:00:42]} Qc1+ {[%emt 0:00:13]} 35. Qxc1 {[%emt 0:00:20]} Nxc1 {[%emt 0:00:02]} 36. Bd5 {[%emt 0:00:31]} Nd3 {[%emt 0:00:37]} 37. b3 {[%emt 0:00:27]} f5 {[%emt 0:00:28]} 38. Kf1 {[%emt 0:00:43]} Nb4 {[%emt 0:01:15]} 39. Be6 {[%emt 0:02:06]} fxe4 {[%emt 0:01:00]} 40. a3 {[%emt 0:00:00]} exf3 {[%emt 0:00:00]} 41. axb4 {[%emt 0:01:52]} fxg2+ {[%emt 0:00:27]} 42. Kxg2 {[%emt 0:00:13]} Kf6 {[%emt 0:00:13]} 43. Bc8 {[%emt 0:01:57]} a5 {[%emt 0:00:27]} 44. bxa5 {[%emt 0:00:49]} Rxa5 {[%emt 0:00:01]} 45. Bd7 {[%emt 0:00:19]} Ra2+ {[%emt 0:01:13]} 46. Kf3 {[%emt 0:00:21]} Rb2 {[%emt 0:00:07]} 47. Ke4 {[%emt 0:00:22]} Rxb3 {[%emt 0:00:13]} 48. Bg4 {[%emt 0:00:31]} Rb4+ {[%emt 0:00:22]} 1/2-1/2

[Event "XII Figueira da Foz Open 2018"]
[Site "Figueira da Foz"]
[Date "2018.11.02"]
[Round "7"]
[White "Dias, Ricardo Pedro Cruz"]
[Black "Silva, Pedro Gil Ferreira "]
[Result "1-0"]
[ECO "B17"]
[WhiteElo "2098"]
[BlackElo "1837"]
[Annotator "NA RC"]
[PlyCount "108"]
[EventDate "2018.10.30"]
[EventType "swiss"]
[EventCountry "POR"]
[SourceTitle "playchess.com"]
[Source "ChessBase"]
[SourceQuality "1"]
[TimeControl "40/5400+30:1800+30"]

1. e4 {[%emt 0:00:00]} c6 {[%emt 0:00:00]} 2. d4 {[%emt 0:00:00]} d5 {[%emt 0:00:13]} 3. Nd2 {[%emt 0:00:00]} dxe4 {[%emt 0:00:21]} 4. Nxe4 {[%emt 0:00:00]} Nd7 {[%emt 0:00:17]} 5. Ng5 {[%emt 0:00:07]} Ngf6 {[%emt 0:00:28]} 6. Bd3 {[%emt 0:00:03]} e6 {[%emt 0:00:52]} 7. N1f3 {[%emt 0:00:07]} Bd6 {[%emt 0:01:19]} 8. Qe2 {[%emt 0:00:08]} h6 {[%emt 0:01:25]} 9. Ne4 {[%emt 0:00:05]} Nxe4 {[%emt 0:00:15]} 10. Qxe4 {[%emt 0:00:02]} Nf6 {[%emt 0:00:27]} 11. Qe2 {[%emt 0:00:06]} b6 {[%emt 0:00:40]} 12. Bd2 {[%emt 0:00:09]} Bb7 {[%emt 0:00:43]} 13. O-O-O {[%emt 0:00:12]} Qc7 {[%emt 0:00:30]} 14. Ne5 O-O-O {[%emt 0:03:09]} 15. f4 {[%emt 0:00:22]} c5 {[%emt 0:10:03] B17: Caro-Kann: Modern Line (4...Nd7)} 16. dxc5 {[%emt 0:00:02]} Bxc5 {[%emt 0:00:52]} 17. Kb1 {[%emt 0:00:08]} Nd5 {[%emt 0:09:46]} (17... Kb8 18. Rhf1 Nd5 19. c4 Nb4 20. Bxb4 Bxb4 21. Be4 Bd6 22. Bxb7 Qxb7 23. Qf3 Qxf3 24. Rxf3 Bxe5 25. Rxd8+ Rxd8 26. fxe5 {½-½ (32) Grandelius,N (2642)-Gharamian,T (2626) Germany 2017}) 18. a3 {[%emt 0:00:40]} Rhe8 $146 {[%emt 0:08:05]} ({Predecessor:} 18... g5 19. fxg5 hxg5 20. Ba6 Bxa6 21. Qxa6+ Kb8 22. Nd3 Be7 23. g3 {0-1 (42) Pogonina,N (2397)-Berzina,I (2243) Heraklio 2002}) 19. Bb5 {[%emt 0:02:27]} Rf8 {[%emt 0:03:42]} 20. Rhf1 {[%emt 0:00:10]} Nf6 {[%emt 0:05:07]} 21. Nd3 {[%emt 0:09:53]} Ne4 {[%emt 0:11:37]} 22. Bb4 {[%emt 0:05:33]} Bxb4 {[%emt 0:07:01]} 23. Nxb4 {[%emt 0:01:23]} Rxd1+ {[%emt 0:02:25]} 24. Rxd1 {[%emt 0:00:13]} Rd8 {[%emt 0:03:01]} 25. Na6 {[%emt 0:20:59]} Rxd1+ {[%emt 0:02:16]} 26. Qxd1 {[%emt 0:00:05]} Qd6 {[%emt 0:03:38]} 27. Qe2 {[%emt 0:07:25]} Nc5 {[%emt 0:01:57]} 28. Nxc5 {[%emt 0:02:33]} Qxc5 {[%emt 0:01:09]} 29. g3 {[%emt 0:00:08]} Qd4 {[%emt 0:06:29]} 30. Qh5 {[%emt 0:05:53]} Qd5 {[%emt 0:05:42]} 31. Qe2 {[%emt 0:00:43]} Qd4 {[%emt 0:00:11]} 32. Be8 {[%emt 0:04:13]} Qf6 {[%emt 0:03:43] [#]} (32... Bd5 $11 33. c3 Qe4+ 34. Qxe4 Bxe4+ 35. Kc1 f6) 33. Qh5 $1 {[%emt 0:02:07]} g6 $1 {[%emt 0:02:42]} 34. Qxh6 {[%emt 0:00:41]} Qd8 {[%emt 0:00:21]} (34... Qd4 $1 $11 {remains equal.} 35. Bb5 Qg1+ 36. Ka2 Bd5+ 37. b3 (37. c4 Qc5 $16) 37... Qc5) 35. Bb5 {[%emt 0:05:48]} (35. Ba4 $16) 35... Qe7 $2 {[%emt 0:05:49]} (35... Qd1+ $11 36. Ka2 Qd8) 36. Qh8+ {[%emt 0:00:36]} Kc7 {[%emt 0:00:12]} 37. Qe8 {[%emt 0:02:03]} Kd6 $2 {[%emt 0:01:19]} (37... Qxe8 $16 38. Bxe8 Be4) 38. Qb8+ {[%emt 0:01:50]} Qc7 {[%emt 0:00:21]} 39. Qxa7 {[%emt 0:00:34]} Qc5 {[%emt 0:00:39]} 40. Qb8+ {[%emt 0:00:00]} Qc7 {[%emt 0:00:00]} 41. Qxc7+ {[%emt 0:01:35]} Kxc7 {[%emt 0:00:40]} 42. Be8 {[%emt 0:00:08]} Be4 {[%emt 0:00:59]} 43. Kc1 {[%emt 0:01:34]} ({Weniger gut wäre} 43. Bxf7 Kd7 $18) 43... f6 {[%emt 0:00:23]} 44. Kd2 {[%emt 0:00:19]} Kd6 {[%emt 0:00:42]} 45. Bb5 {[%emt 0:00:13]} e5 {[%emt 0:00:55]} 46. Bd3 {[%emt 0:00:40]} Bf3 {[%emt 0:02:35]} 47. Bxg6 {[%emt 0:00:39]} Ke6 {[%emt 0:02:32]} 48. Ke3 $18 {[%emt 0:00:09]} Bd1 {[%emt 0:00:48]} 49. Bd3 {[%emt 0:00:10]} Bg4 {[%emt 0:00:25]} 50. a4 {[%emt 0:00:12]} Kd6 {[%emt 0:00:18]} 51. b4 {[%emt 0:00:12]} exf4+ {[%emt 0:02:12]} 52. Kxf4 {[%emt 0:00:21]} Bd7 {[%emt 0:01:05]} 53. a5 {[%emt 0:00:32]} bxa5 {[%emt 0:00:04]} 54. bxa5 {[%emt 0:00:09]} Kd5 {Ke4+} 1-0

[Event "XII Figueira da Foz Open 2018"]
[Site "Figueira da Foz"]
[Date "2018.11.02"]
[Round "7"]
[White "Fernandes, Joao Pedro Murtinho"]
[Black "Puglia, Francesco"]
[Result "1/2-1/2"]
[ECO "B90"]
[WhiteElo "2067"]
[BlackElo "1803"]
[Annotator "NA RC"]
[PlyCount "59"]
[EventDate "2018.10.30"]
[EventType "swiss"]
[EventCountry "POR"]
[SourceTitle "playchess.com"]
[Source "ChessBase"]
[SourceQuality "1"]
[TimeControl "40/5400+30:1800+30"]

1. e4 {Ftacnik,L} c5 {[%emt 0:04:01]} 2. Nf3 {[%emt 0:00:00]} d6 {[%emt 0:00:01]} 3. d4 {[%emt 0:00:00]} cxd4 {[%emt 0:00:02]} 4. Nxd4 {[%emt 0:00:06]} Nf6 {[%emt 0:00:03]} 5. Nc3 {[%emt 0:00:09]} a6 {[%emt 0:00:01]} 6. h3 {[%emt 0:00:08]} e6 7. g4 {[%emt 0:00:13]} d5 {[%emt 0:01:18]} 8. exd5 {[%emt 0:00:18]} Nxd5 {[%emt 0:00:07]} 9. Nde2 {B81: Sicilian Scheveningen: Keres Attack} h5 {[%emt 0:01:48]} 10. g5 {[%emt 0:05:32]} Bd6 {[%emt 0:02:18]} 11. Nxd5 {[%emt 0:08:37]} exd5 {[%emt 0:00:32]} 12. Be3 $146 {[%emt 0:00:58]} ({Predecessor:} 12. Bg2 O-O 13. O-O Nc6 14. Qxd5 Be6 15. Qf3 Re8 16. Be3 Bc4 {½-½ (42) Anand,V (2780)-Gelfand,B (2740) Zuerich 2013 CBM 153 [Ftacnik,L]}) 12... Nc6 {[%emt 0:03:32]} 13. Qd2 {[%emt 0:01:16]} Bf5 {[%emt 0:03:24]} 14. Nd4 {[%emt 0:14:38]} (14. Bg2 $1 $11) 14... Be4 {[%emt 0:27:18]} 15. f3 {[%emt 0:12:13]} Nxd4 {[%emt 0:01:12]} 16. Qxd4 {[%emt 0:01:39]} Bxf3 {[%emt 0:01:40]} 17. Qxg7 {[%emt 0:14:50]} Bg3+ {[%emt 0:02:52]} 18. Kd2 {[%emt 0:00:48]} Qa5+ {[%emt 0:05:25]} 19. c3 {[%emt 0:00:21]} O-O-O {[%emt 0:02:16]} 20. Bd3 {[%emt 0:04:15]} d4 {[%emt 0:02:31]} 21. Bxd4 {[%emt 0:01:27]} Rhg8 {[%emt 0:14:19]} (21... Bf2 $17 22. Bxf2 Bxh1) 22. Qxf7 {[%emt 0:03:33]} Qxg5+ {[%emt 0:02:51]} 23. Kc2 {[%emt 0:00:58]} Bxh1 {[%emt 0:09:45]} 24. Rxh1 {[%emt 0:00:26]} Qd5 {[%emt 0:05:06]} (24... Rgf8 $11 25. Qe6+ Kb8) 25. Qxd5 {[%emt 0:01:43]} Rxd5 {[%emt 0:00:06]} 26. Bc4 {[%emt 0:00:07]} Rxd4 $1 {[%emt 0:00:51]} 27. cxd4 {[%emt 0:01:25]} Rf8 {[%emt 0:00:28]} 28. Rd1 {[%emt 0:02:05]} Rf2+ {[%emt 0:00:57]} 29. Kc3 {[%emt 0:01:16]} Rf3+ {[%emt 0:01:51]} 30. Rd3 $14 {[%emt 0:04:57]} 1/2-1/2

[Event "XII Figueira da Foz Open 2018"]
[Site "Figueira da Foz"]
[Date "2018.11.02"]
[Round "7"]
[White "Felizes, Paulo"]
[Black "Morais, Vitor"]
[Result "0-1"]
[ECO "B07"]
[WhiteElo "1965"]
[BlackElo "1918"]
[Annotator "NA RC"]
[PlyCount "98"]
[EventDate "2018.10.30"]
[EventType "swiss"]
[EventCountry "POR"]
[SourceTitle "playchess.com"]
[Source "ChessBase"]
[SourceQuality "1"]
[TimeControl "40/5400+30:1800+30"]

1. d4 {[%emt 0:00:00]} d6 {[%emt 0:00:00]} 2. e4 {[%emt 0:00:00]} Nf6 {[%emt 0:00:00]} 3. Nc3 {[%emt 0:00:29]} g6 {[%emt 0:00:00]} 4. h4 {[%emt 0:00:13]} h5 {[%emt 0:00:01]} 5. Bg5 {[%emt 0:01:11]} Bg7 {[%emt 0:00:11]} 6. e5 {[%emt 0:02:17]} Nh7 {[%emt 0:00:08]} 7. Nf3 {[%emt 0:08:16]} Nxg5 {[%emt 0:00:08]} 8. Nxg5 {[%emt 0:06:40]} dxe5 {[%emt 0:00:09]} 9. Qf3 {[%emt 0:02:54]} O-O {[%emt 0:00:16]} 10. Bc4 {[%emt 0:05:39]} e6 {[%emt 0:00:26]} 11. d5 {[%emt 0:11:31]} exd5 {[%emt 0:00:11]} 12. Bxd5 {[%emt 0:01:19]} Qe7 {[%emt 0:01:07]} (12... Qe8 $1 $15) 13. Bxb7 {[%emt 0:15:51]} Bxb7 {[%emt 0:00:16]} 14. Qxb7 {[%emt 0:00:03]} Nd7 {[%emt 0:00:08]} 15. Nd5 {[%emt 0:01:08]} Qc5 {[%emt 0:00:21]} 16. Rd1 {[%emt 0:09:18]} Nb6 {[%emt 0:00:54]} 17. b4 {[%emt 0:04:19]} (17. Qc6 $5 Qxc6 18. Ne7+ Kh8 19. Nxc6 $14) 17... Qc4 {[%emt 0:01:35]} 18. Nxf7 {[%emt 0:15:51]} Rab8 {[%emt 0:01:15]} 19. Qxc7 $19 {[%emt 0:07:45]} (19. Ng5 $1 $11 {and White is okay.} Qxc2 20. Ne7+ Kh8 21. Nf7+ Rxf7 22. Qxb8+ Rf8 23. Nxg6+ Qxg6 24. Qb7) 19... Qxc7 {[%emt 0:01:27]} 20. Nxc7 {[%emt 0:00:07]} Rxf7 {[%emt 0:00:21]} 21. Ne6 {[%emt 0:00:16]} Rc8 {[%emt 0:01:02]} 22. Nc5 {[%emt 0:00:50]} Bf8 {[%emt 0:00:12]} 23. Nd3 {[%emt 0:01:03]} e4 {[%emt 0:00:09]} 24. Ne5 {[%emt 0:00:08]} Bxb4+ {[%emt 0:00:13]} 25. Ke2 {[%emt 0:00:16]} Rxc2+ {[%emt 0:00:34]} 26. Ke3 {[%emt 0:00:09]} Rfxf2 {[%emt 0:01:20]} 27. Nxg6 {[%emt 0:02:12]} Rxg2 {[%emt 0:01:00]} 28. Nf4 {[%emt 0:00:32]} Bd2+ {[%emt 0:01:36]} 29. Kxe4 {[%emt 0:00:10]} Bxf4 {[%emt 0:00:24]} 30. Kxf4 {[%emt 0:00:10]} Rxa2 {[%emt 0:00:13]} 31. Ra1 {[%emt 0:02:00]} Kg7 {[%emt 0:00:23]} 32. Rhg1 {[%emt 0:01:02]} Kf6 {[%emt 0:01:48]} 33. Rxa2 {[%emt 0:01:15]} Rxa2 {[%emt 0:00:39]} 34. Rg5 {[%emt 0:00:05]} Ra4+ {[%emt 0:00:15]} 35. Kf3 {[%emt 0:00:06]} Rxh4 {[%emt 0:00:33]} 36. Ra5 {[%emt 0:00:05]} Nc8 {[%emt 0:01:05]} 37. Ra6+ {[%emt 0:01:15]} Kf5 {[%emt 0:00:24]} 38. Ra5+ {[%emt 0:00:24]} Ke6 {[%emt 0:00:16]} 39. Kg3 {[%emt 0:00:17]} Rh1 {[%emt 0:01:03]} 40. Kg2 {[%emt 0:00:00]} Re1 {[%emt 0:00:00]} 41. Rxh5 {[%emt 0:00:41]} Re5 {[%emt 0:00:26]} 42. Rh6+ {[%emt 0:01:00]} Kd7 {[%emt 0:00:13]} 43. Kf3 {[%emt 0:00:13]} a5 {[%emt 0:00:11]} 44. Kf4 {[%emt 0:00:08]} Re6 {[%emt 0:00:45]} 45. Rh5 {[%emt 0:00:15]} a4 {[%emt 0:00:11]} 46. Ra5 {[%emt 0:00:53]} Nb6 {[%emt 0:00:18]} 47. Kf5 {[%emt 0:00:11]} Re8 {[%emt 0:00:08]} 48. Rb5 {[%emt 0:01:02]} Kc6 {[%emt 0:00:13]} 49. Rb1 {[%emt 0:00:06]} Kc5 {[%emt 0:00:10]} 0-1

[Event "XII Figueira da Foz Open 2018"]
[Site "Figueira da Foz"]
[Date "2018.11.02"]
[Round "7"]
[White "Lopez de Turiso, Jose Angel"]
[Black "Guerreiro, Nuno"]
[Result "0-1"]
[ECO "A48"]
[WhiteElo "1933"]
[BlackElo "2069"]
[Annotator "NA RC"]
[PlyCount "86"]
[EventDate "2018.10.30"]
[EventType "swiss"]
[EventCountry "POR"]
[SourceTitle "playchess.com"]
[Source "ChessBase"]
[SourceQuality "1"]
[TimeControl "40/5400+30:1800+30"]

1. d4 Nf6 2. Nf3 g6 3. Nbd2 d5 4. e3 Bg7 5. Bd3 O-O 6. b3 c5 7. Bb2 cxd4 8. exd4 Nc6 9. a3 Re8 10. O-O Bg4 11. h3 Bxf3 12. Nxf3 Ne4 13. c4 e6 14. b4 Ng5 15. Ne5 f6 16. Nxc6 bxc6 17. cxd5 cxd5 18. Bb5 Re7 19. Bc6 Rc8 20. b5 Ne4 21. a4 Bh6 22. Re1 Bf4 23. g3 Bb8 24. Ba3 Rg7 25. Rc1 h5 26. Qb3 Nd2 27. Qd3 Ne4 28. Qb3 f5 29. Kg2 h4 30. Re3 hxg3 31. fxg3 Kh7 32. Qd3 Qa5 33. Qd1 Qd8 34. Qd3 Qg5 35. h4 Qh5 36. Qd1 Qh6 37. Qe2 g5 38. hxg5 Qxg5 39. Rh1+ Kg8 40. Qh5 Qxe3 41. Qh8+ Kf7 42. Qh5+ Kf6 43. Qh4+ Qg5 0-1